fUSD/lending_fUSD_20240716
["ID","MTS","AMOUNT","RATE_DAILY","PERIOD"]
[332252443,1721088632576,-194.3667123,0.00010998,2]
[332252444,1721088632586,-286.76565739,0.00011096,2]
[332252445,1721088632730,-13.23434261,0.00011096,2]
[332252446,1721088632740,-2644.05484661,0.00011097,2]
[332252447,1721088632784,-520.90383115,0.00011097,2]
[332252448,1721088632795,-1405.21514294,0.00011097,2]
[332252449,1721088632807,-256.269,0.00011097,2]
[332252450,1721088632840,-500.0,0.00011097,2]
[332252452,1721088632852,-3923.89930803,0.00011097,2]
[332252454,1721088632861,-356.60665527,0.00011098,2]
[332252456,1721088632871,-3393.89432477,0.00011098,2]
[332252458,1721088632880,-534.59978193,0.00011098,2]
[332252460,1721088632891,-327.39805379,0.00011098,2]
[332252463,1721088632917,-804.43551989,0.00011098,2]
[332252474,1721088637815,-476.25710947,0.00011098,2]
[332252475,1721088637825,-423.74289053,0.00011098,2]
[332252476,1721088637837,-2653.21657718,0.00011098,2]
[332252477,1721088637846,-548.47420322,0.00011199,2]
[332252478,1721088637858,-259.86726451,0.00011199,2]
[332252479,1721088637869,-708.45657581,0.00011199,2]
[332252480,1721088638098,-666.37020231,0.00011199,2]
[332252481,1721088638107,-594.64,0.00011278,2]
[332252482,1721088638117,-420.0,0.00012192,2]
[332252483,1721088638126,-1000.0,0.00012759,2]
[332252484,1721088638135,-194.3667123,0.00012949,2]
[332252486,1721088638144,-378.46778539,0.00013198,2]
[332252488,1721088638155,-4102.02946677,0.00013198,2]
[332252490,1721088638170,-865.69,0.00013198,2]
[332252492,1721088638181,-720.7119,0.00013198,2]
[332252495,1721088638196,-1178.74084784,0.00013198,2]
[332252497,1721088638205,-250.0,0.00013219,2]
[332252499,1721088638214,-200.02,0.00013245,2]
[332252501,1721088638223,-1272.51285576,0.00013516,2]
[332252503,1721088638233,-594.64,0.00013542,2]
[332252505,1721088638242,-161.08,0.00013699,2]
[332252507,1721088638251,-4464.3826,0.000137,2]
[332252509,1721088638260,-307.89,0.0001379,3]
[332252511,1721088638269,-153.94,0.0001379,3]
[332252513,1721088638278,-461.85,0.0001379,3]
[332252515,1721088638287,-6644.6811,0.0001379,2]
[332252517,1721088638296,-8901.0903,0.0001379,2]
[332252518,1721088638305,-5712.53289934,0.000138,2]
[332252521,1721088638317,-9846.52340112,0.000138,2]
[332252562,1721088639872,-658.39,0.000138,2]
[332252563,1721088639884,-490.39151482,0.000138,2]
[332252564,1721088639937,-129801.4976168,0.000138,2]
[332252565,1721088639982,-25977.95608408,0.000138,2]
[332252566,1721088639993,-2766.40204038,0.000138,2]
[332252567,1721088640004,-2272.92156,0.000138,2]
[332252568,1721088640037,-15843.68528114,0.000138,2]
[332252569,1721088640092,-66118.85625345,0.000138,2]
[332252706,1721088642919,-2931.68166,0.000138,2]
[332252710,1721088642969,-353.51611768,0.000138,2]
[332252712,1721088643075,-7719.15030239,0.000138,2]
[332252713,1721088643086,-313.91435769,0.000138,2]
[332252714,1721088643096,-1169.0,0.000138,2]
[332252715,1721088643129,-5427.55221549,0.000138,2]
[332252716,1721088643140,-273.2000002,0.000138,2]
[332252717,1721088643151,-16011.87488918,0.000138,2]
[332252746,1721088645977,-320.19796747,0.000138,2]
[332252747,1721088645989,-311.72581329,0.000138,2]
[332252748,1721088646000,-20118.96090647,0.000138,2]
[332252749,1721088646011,-22519.49385085,0.000138,2]
[332252750,1721088646022,-7189.3631687,0.000138,2]
[332252751,1721088646068,-1592.51588198,0.000138,2]
[332252752,1721088646079,-815.82656,0.000138,2]
[332252753,1721088646090,-735.568365,0.000138,2]
[332252754,1721088646101,-422.91126348,0.000138,2]
[332252783,1721089410926,150.0,0.00025959,120]
[332252786,1721089470831,150.0,0.00025729,120]
[332252788,1721089546559,13064.70396262,0.00025,120]
[332252789,1721089562348,476.25710947,0.00010696,2]
[332252790,1721089563381,-476.25710947,0.00010696,2]
[332252791,1721089563763,-423.30289053,0.00010696,2]
[332252792,1721089564604,-423.74289053,0.00010696,2]
[332252797,1721089683893,1566.2659194,0.0001,2]
[332252799,1721089717154,900.0,0.0001,2]
[332252817,1721089717794,2225.0,0.00027,120]
[332252818,1721089726479,525.67419748,0.0001,2]
[332252819,1721089739998,333.57130716,0.0001,2]
[332252834,1721089830878,150.0,0.00026368,120]
[332252837,1721089831946,-580.15,0.00010787,2]
[332252838,1721089831955,-194.3667123,0.00010796,2]
[332252839,1721089831964,-239.97856543,0.00011,2]
[332252840,1721089832007,-1995.56510921,0.00011,2]
[332252841,1721089832017,-300.0,0.00011097,2]
[332252842,1721089832026,-300.0,0.00011097,2]
[332252843,1721089832035,-1890.76445617,0.00011098,2]
[332252844,1721089832045,-722.09432961,0.00011098,2]
[332252845,1721089832054,-603.6117703,0.00011098,2]
[332252846,1721089832063,-379.53669089,0.00011098,2]
[332252847,1721089832073,-439.04054062,0.00011098,2]
[332252848,1721089832082,-413.67982935,0.00011098,2]
[332252849,1721089832091,-279.91028448,0.00011098,2]
[332252850,1721089832100,-685.81454762,0.00011098,2]
[332252851,1721089832109,-365.98083443,0.00011098,2]
[332252852,1721089832118,-402.83572979,0.00011098,2]
[332252853,1721089832127,-206.44520727,0.00011098,2]
[332252854,1721089832137,-155.74846367,0.00011098,2]
[332252855,1721089832148,-155.09401782,0.00011098,2]
[332252856,1721089832158,-329.18898712,0.00011098,2]
[332252857,1721089832167,-235.78185267,0.00011098,2]
[332252858,1721089832176,-286.69842152,0.00011098,2]
[332252859,1721089832186,-308.61050773,0.00011098,2]
[332252860,1721089832195,-155.0,0.00011098,2]
[332252861,1721089832205,-276.51444218,0.00011098,2]
[332252862,1721089832214,-5602.87066756,0.00011098,2]
[332252863,1721089832223,-156.0,0.00011199,2]
[332252864,1721089832232,-193.83550993,0.00011199,2]
[332252865,1721089832242,-156.0,0.00011199,2]
[332252866,1721089832251,-251.03980006,0.00012121,2]
[332252867,1721089832262,-976.03245698,0.00012121,2]
[332252868,1721089832274,-27.562976,0.00012121,2]
[332252869,1721089832283,-155.0,0.00012302,2]
[332252870,1721089832293,-162.937024,0.00012302,2]
[332252871,1721089832304,-359.3444356,0.00012302,2]
[332252872,1721089832313,-177.11149379,0.00012585,2]
[332252873,1721089832329,-72.88850621,0.00012585,2]
[332252874,1721089832338,-265.58,0.00012625,2]
[332252875,1721089832347,-81.87880355,0.00012687,2]
[332252876,1721089832358,-918.12119645,0.00012687,2]
[332252877,1721089832367,-168.02,0.00012874,2]
[332252878,1721089832375,-580.15,0.00013051,2]
[332252879,1721089832385,-300.0,0.00013178,2]
[332252880,1721089832395,-508.46,0.0001337,2]
[332252881,1721089832405,-155.0,0.00013516,2]
[332252882,1721089832414,-500.0,0.00013648,2]
[332252883,1721089832423,-500.0,0.00013657,2]
[332252884,1721089832432,-3000.0,0.0001366,2]
[332252885,1721089832442,-500.0,0.00013666,2]
[332252886,1721089832452,-1798.76583178,0.0001367,2]
[332252887,1721089832462,-500.0,0.00013674,2]
[332252888,1721089832471,-500.0,0.00013683,2]
[332252889,1721089832480,-500.0,0.00013692,2]
[332252890,1721089832490,-161.08,0.00013699,2]
[332252891,1721089832499,-1254.7553,0.000137,2]
[332252892,1721089832508,-13811.02012587,0.000137,2]
[332252893,1721089832519,-1578.30217413,0.000137,2]
[332252894,1721089832527,-500.0,0.00013701,2]
[332252895,1721089832537,-500.0,0.0001371,2]
[332252896,1721089832546,-500.0,0.00013718,2]
[332252897,1721089832555,-500.0,0.00013727,2]
[332252898,1721089832564,-500.0,0.00013736,2]
[332252899,1721089832573,-500.0,0.00013745,2]
[332252900,1721089832582,-500.0,0.00013754,2]
[332252901,1721089832591,-500.0,0.00013762,2]
[332252902,1721089832600,-500.0,0.00013771,2]
[332252903,1721089832610,-500.0,0.0001378,2]
[332252904,1721089832619,-500.0,0.00013789,2]
[332252905,1721089832628,-500.0,0.00013798,2]
[332252906,1721089832637,-351.88844729,0.00013799,2]
[332252907,1721089832647,-500.0,0.00013799,2]
[332252908,1721089832658,-542.54,0.00013799,2]
[332252909,1721089832667,-590.5875717,0.00013799,2]
[332252910,1721089832676,-485.0,0.00013799,2]
[332252911,1721089832684,-500.0,0.00013799,2]
[332252912,1721089832693,-464.55,0.00013799,2]
[332252913,1721089832703,-500.0,0.00013799,2]
[332252914,1721089832711,-223.92778684,0.00013799,2]
[332252915,1721089832720,-321.215,0.00013799,2]
[332252916,1721089832730,-224.38502261,0.00013799,2]
[332252917,1721089832739,-500.0,0.00013799,2]
[332252918,1721089832748,-494.23477006,0.00013799,2]
[332252919,1721089832757,-494.54679938,0.00013799,2]
[332252920,1721089832766,-500.0,0.00013799,2]
[332252921,1721089832775,-104060.49779648,0.000138,2]
[332252922,1721089832786,-1147.32716098,0.000138,2]
[332252926,1721089838299,-257.4133728,0.00013472,2]
[332252927,1721089838372,-872.79542084,0.00013472,2]
[332252928,1721089838381,-8687.94207767,0.000138,2]
[332252929,1721089838393,-12338.90693721,0.000138,2]
[332252930,1721089838419,-11371.02566343,0.000138,2]
[332252931,1721089838430,-11100.39600229,0.000138,2]
[332252932,1721089838586,-37490.603835,0.000138,2]
[332252933,1721089838598,-13464.927446,0.000138,2]
[332252934,1721089838654,-9551.3770682,0.000138,2]
[332252935,1721089838666,-29419.7076725,0.000138,2]
[332252936,1721089838677,-8559.29733584,0.000138,2]
[332252951,1721089840123,-155.0,0.00012273,2]
[332252952,1721089840133,-500.0,0.00013799,2]
[332252953,1721089840142,-3043.49104601,0.000138,2]
[332252954,1721089840156,-1608.52092669,0.000138,2]
[332252955,1721089840167,-1548.81483184,0.000138,2]
[332252956,1721089840178,-4368.307944,0.000138,2]
[332252957,1721089840193,-1326.15348758,0.000138,2]
[332252958,1721089840204,-252.82125168,0.000138,2]
[332252959,1721089840241,-1957.54067398,0.000138,2]
[332252960,1721089840301,-760.74789201,0.000138,2]
[332252961,1721089840312,-63875.05574654,0.000138,2]
[332252962,1721089840524,-2462.65126484,0.000138,2]
[332252965,1721089840535,-5967.50913654,0.000138,2]
[332252988,1721089843278,-153.94,0.0001379,3]
[332252989,1721089843288,-794.74399544,0.000138,2]
[332252990,1721089843300,-259.5899995,0.000138,2]
[332252991,1721089843446,-14886.63927411,0.000138,2]
[332252995,1721089846064,-500.0,0.00013799,2]
[332252996,1721089846074,-500.0,0.00013799,2]
[332252997,1721089846083,-7609.01591629,0.000138,2]
[332252998,1721089846095,-956.45,0.000138,2]
[332252999,1721089846178,-1898.86705973,0.000138,2]
[332253000,1721089846189,-4852.36076937,0.000138,2]
[332253001,1721089846236,-584.74,0.000138,2]
[332253002,1721089846276,-2153.79903004,0.000138,2]
[332253003,1721089846297,-971.68032,0.000138,2]
[332253004,1721089846309,-3070.60000002,0.000138,2]
[332253010,1721090431253,150.0,0.00026394,120]
[332253019,1721090903557,-476.25710947,0.00010587,2]
[332253020,1721090903970,-476.25710947,0.00010587,2]
[332253021,1721090904385,-476.25710947,0.00010587,2]
[332253022,1721090904706,-476.25710947,0.00010587,2]
[332253023,1721090905080,-221.22867159,0.00010587,2]
[332253031,1721091008812,-476.25710947,0.00010487,2]
[332253032,1721091009614,-423.30289053,0.00010487,2]
[332253033,1721091010123,-200.95901814,0.00010487,2]
[332253042,1721091032195,-300.0,0.00010586,2]
[332253043,1721091032205,-15081.67376229,0.00010587,2]
[332253044,1721091032214,-693.22,0.00010649,2]
[332253045,1721091032224,-599.29525083,0.00011098,2]
[332253046,1721091032238,-327.6771938,0.00011098,2]
[332253047,1721091032247,-1260.50963745,0.00011098,2]
[332253048,1721091032256,-262.79023538,0.00011098,2]
[332253049,1721091032265,-228.31623414,0.00011098,2]
[332253050,1721091032275,-349.41897352,0.00011098,2]
[332253051,1721091032284,-156.0,0.00011098,2]
[332253052,1721091032293,-451.45890392,0.00011098,2]
[332253053,1721091032303,-305.81510484,0.00011098,2]
[332253054,1721091032314,-1304.71801981,0.00011098,2]
[332253055,1721091032323,-420.0,0.00011638,2]
[332253056,1721091032333,-297.28970995,0.00012302,2]
[332253057,1721091032342,-476.45,0.00012496,2]
[332253058,1721091032352,-168.02,0.00012508,2]
[332253059,1721091032362,-64.37757407,0.00012516,2]
[332253060,1721091032374,-185.62242593,0.00012516,2]
[332253061,1721091032383,-250.0,0.00012546,2]
[332253062,1721091032393,-5297.3557,0.00012628,2]
[332253063,1721091032402,-200.0,0.00012728,2]
[332253064,1721091032412,-620.76,0.00012728,2]
[332253065,1721091032421,-499.99,0.00012728,2]
[332253066,1721091032430,-1672.07,0.00012755,2]
[332253067,1721091032440,-2722.82,0.00012763,2]
[332253068,1721091032449,-216.81,0.00012804,2]
[332253069,1721091032458,-425.26598198,0.00012833,2]
[332253070,1721091032467,-693.22,0.00012913,2]
[332253071,1721091032476,-500.0,0.00013419,2]
[332253072,1721091032486,-500.0,0.00013428,2]
[332253074,1721091032495,-500.0,0.00013437,2]
[332253076,1721091032504,-500.0,0.00013446,2]
[332253078,1721091032513,-500.0,0.00013454,2]
[332253080,1721091032522,-500.0,0.00013463,2]
[332253082,1721091032531,-500.0,0.00013472,2]
[332253084,1721091032541,-306.49361286,0.00013472,2]
[332253086,1721091032550,-500.0,0.00013481,2]
[332253088,1721091032559,-500.0,0.0001349,2]
[332253090,1721091032569,-500.0,0.00013498,2]
[332253092,1721091032578,-500.0,0.00013507,2]
[332253094,1721091032587,-500.0,0.00013516,2]
[332253095,1721091032597,-400.0,0.00013516,2]
[332253097,1721091032606,-155.0,0.00013516,2]
[332253098,1721091032615,-500.0,0.00013525,2]
[332253099,1721091032624,-500.0,0.00013534,2]
[332253100,1721091032636,-500.0,0.00013542,2]
[332253101,1721091032645,-529.36820483,0.00013543,2]
[332253102,1721091032654,-155.0,0.00013543,2]
[332253103,1721091032662,-500.0,0.00013551,2]
[332253104,1721091032671,-500.0,0.0001356,2]
[332253105,1721091032680,-500.0,0.00013569,2]
[332253106,1721091032689,-500.0,0.00013578,2]
[332253107,1721091032698,-500.0,0.00013586,2]
[332253108,1721091032707,-500.0,0.00013595,2]
[332253109,1721091032717,-500.0,0.00013604,2]
[332253110,1721091032726,-500.0,0.00013613,2]
[332253111,1721091032735,-500.0,0.00013622,2]
[332253112,1721091032744,-500.0,0.0001363,2]
[332253113,1721091032753,-500.0,0.00013639,2]
[332253114,1721091032762,-767.8248,0.000137,2]
[332253115,1721091032772,-944.0553,0.000137,2]
[332253116,1721091032781,-202.52407961,0.00013759,2]
[332253117,1721091032794,-799.8077985,0.00013759,2]
[332253118,1721091032803,-364.84556817,0.00013759,2]
[332253119,1721091032812,-1905.28137081,0.00013759,2]
[332253120,1721091032821,-769.72,0.0001377,3]
[332253121,1721091032831,-140000.0,0.0001378,2]
[332253122,1721091032840,-257.10115357,0.00013799,2]
[332253123,1721091032850,-500.0,0.00013799,2]
[332253124,1721091032860,-500.0,0.00013799,2]
[332253125,1721091032869,-519.94,0.00013799,2]
[332253126,1721091032879,-126939.42046719,0.000138,2]
[332253127,1721091032890,-2000.0,0.000138,2]
[332253128,1721091032900,-200.0,0.000138,2]
[332253129,1721091032909,-2000.0,0.000138,2]
[332253130,1721091032918,-200.0,0.000138,2]
[332253131,1721091032928,-3000.0,0.000138,2]
[332253132,1721091032937,-244.11684718,0.00013802,2]
[332253133,1721091032947,-500.0,0.00013806,2]
[332253134,1721091032956,-500.0,0.00013815,2]
[332253135,1721091032966,-500.0,0.00013824,2]
[332253136,1721091032976,-500.0,0.00013833,2]
[332253137,1721091032985,-500.0,0.00013842,2]
[332253138,1721091032995,-203.44006433,0.00013849,2]
[332253139,1721091033004,-155.0,0.00013849,2]
[332253140,1721091033013,-156.67050622,0.00013849,2]
[332253141,1721091033022,-379.53669089,0.00013849,2]
[332253142,1721091033031,-500.0,0.0001385,2]
[332253143,1721091033040,-500.0,0.00013854,2]
[332253144,1721091033049,-500.0,0.00013854,2]
[332253145,1721091033058,-519.94,0.00013854,2]
[332253146,1721091033068,-500.0,0.00013859,2]
[332253147,1721091033077,-500.0,0.00013868,2]
[332253148,1721091033086,-500.0,0.00013877,2]
[332253149,1721091033095,-9051.19598539,0.0001388,2]
[332253150,1721091033105,-500.0,0.00013886,2]
[332253151,1721091033114,-500.0,0.00013894,2]
[332253152,1721091033123,-159.68493541,0.00013899,2]
[332253153,1721091033133,-436.55723828,0.00013899,2]
[332253154,1721091033142,-1254.63523304,0.00013899,2]
[332253155,1721091033152,-500.0,0.00013903,2]
[332253156,1721091033160,-500.0,0.00013909,2]
[332253157,1721091033169,-500.0,0.00013909,2]
[332253158,1721091033179,-519.94,0.00013909,2]
[332253159,1721091033188,-500.0,0.00013912,2]
[332253160,1721091033197,-500.0,0.00013921,2]
[332253161,1721091033206,-500.0,0.0001393,2]
[332253162,1721091033215,-2000.0,0.00013938,2]
[332253163,1721091033225,-200.0,0.00013938,2]
[332253164,1721091033239,-2000.0,0.00013938,2]
[332253165,1721091033248,-200.0,0.00013938,2]
[332253166,1721091033258,-500.0,0.00013938,2]
[332253167,1721091033267,-500.0,0.00013947,2]
[332253168,1721091033276,-500.0,0.00013956,2]
[332253169,1721091033286,-500.0,0.00013964,2]
[332253170,1721091033295,-500.0,0.00013964,2]
[332253171,1721091033305,-519.94,0.00013964,2]
[332253172,1721091033315,-500.0,0.00013965,2]
[332253173,1721091033325,-1137.032039,0.00013973,2]
[332253174,1721091033334,-500.0,0.00013974,2]
[332253175,1721091033343,-500.0,0.00013982,2]
[332253176,1721091033352,-500.0,0.00013989,2]
[332253177,1721091033361,-500.0,0.00013989,2]
[332253178,1721091033370,-500.0,0.00013989,2]
[332253179,1721091033380,-500.0,0.00013989,2]
[332253180,1721091033390,-453.84077343,0.00013989,2]
[332253181,1721091033400,-156.69839307,0.00013989,2]
[332253182,1721091033410,-157.7369614,0.00013989,2]
[332253183,1721091033420,-418.19135504,0.00013989,2]
[332253184,1721091033429,-103596.471796,0.0001399,3]
[332253185,1721091033438,-500.0,0.00013991,2]
[332253186,1721091033447,-3408.32501763,0.00013997,2]
[332253187,1721091033457,-500.0,0.00014,2]
[332253188,1721091033466,-21771.94780104,0.00014,2]
[332253189,1721091033479,-147351.7712992,0.00014,2]
[332253190,1721091033505,-32682.17559037,0.00014,2]
[332253206,1721091038188,-202.52407961,0.00013736,2]
[332253207,1721091038197,-500.0,0.00013799,2]
[332253208,1721091038207,-54.74544151,0.00013802,2]
[332253217,1721091038854,-100.96566753,0.00013802,2]
[332253218,1721091038863,-500.0,0.00013854,2]
[332253219,1721091038873,-500.0,0.00013909,2]
[332253220,1721091038882,-500.0,0.00013964,2]
[332253221,1721091038892,-500.0,0.00013989,2]
[332253222,1721091038902,-16572.01138246,0.00014,2]
[332253223,1721091040513,-1103.09084383,0.00014,2]
[332253239,1721091043301,-2644.81600479,0.00014,2]
[332253243,1721091043411,-164010.16831375,0.00014,2]
[332253244,1721091043421,-500.0,0.00014018,2]
[332253245,1721091043430,-500.0,0.00014018,2]
[332253246,1721091043439,-519.94,0.00014018,2]
[332253247,1721091043448,-500.0,0.00014018,2]
[332253248,1721091043457,-17266.0786326,0.0001404,3]
[332253249,1721091043466,-500.0,0.00014044,2]
[332253250,1721091043475,-356.2480474,0.00014044,2]
[332253251,1721091043484,-500.0,0.00014044,2]
[332253252,1721091043493,-500.0,0.00014044,2]
[332253253,1721091043502,-449.0,0.0001405,2]
[332253254,1721091043511,-1886.191,0.0001405,2]
[332253255,1721091043521,-4287.09,0.0001405,2]
[332253256,1721091043530,-5224.629,0.0001405,2]
[332253257,1721091043539,-590.11,0.00014055,2]
[332253258,1721091043548,-500.0,0.00014073,2]
[332253259,1721091043558,-500.0,0.00014073,2]
[332253260,1721091043568,-519.94,0.00014073,2]
[332253261,1721091043577,-500.0,0.00014073,2]
[332253262,1721091043586,-2000.0,0.00014077,2]
[332253263,1721091043596,-200.0,0.00014077,2]
[332253265,1721091043606,-2000.0,0.00014077,2]
[332253266,1721091043616,-200.0,0.00014077,2]
[332253267,1721091043625,-150.0,0.00014091,2]
[332253268,1721091043634,-500.0,0.00014099,2]
[332253269,1721091043642,-215.03698845,0.00014099,2]
[332253270,1721091043652,-619.34783118,0.00014099,2]
[332253271,1721091043662,-300.59,0.000141,2]
[332253272,1721091043671,-500.0,0.00014128,2]
[332253273,1721091043679,-500.0,0.00014128,2]
[332253274,1721091043688,-519.94,0.00014128,2]
[332253275,1721091043698,-500.0,0.00014128,2]
[332253276,1721091043707,-500.0,0.00014183,2]
[332253277,1721091043716,-500.0,0.00014183,2]
[332253278,1721091043725,-519.94,0.00014183,2]
[332253280,1721091043734,-500.0,0.00014183,2]
[332253282,1721091043743,-424.66,0.00014192,2]
[332253283,1721091043752,-265.58,0.00014203,2]
[332253284,1721091043761,-500.0,0.00014208,2]
[332253285,1721091043770,-17266.0786326,0.00014208,3]
[332253286,1721091043779,-500.0,0.00014216,2]
[332253287,1721091043788,-2000.0,0.00014218,2]
[332253288,1721091043797,-200.0,0.00014218,2]
[332253289,1721091043807,-2000.0,0.00014218,2]
[332253290,1721091043816,-200.0,0.00014218,2]
[332253291,1721091043826,-500.0,0.00014225,2]
[332253292,1721091043835,-500.0,0.00014234,2]
[332253293,1721091043845,-500.0,0.00014238,2]
[332253294,1721091043854,-500.0,0.00014238,2]
[332253295,1721091043863,-519.94,0.00014238,2]
[332253296,1721091043872,-500.0,0.00014238,2]
[332253297,1721091043881,-500.0,0.00014243,2]
[332253298,1721091043890,-500.0,0.00014252,2]
[332253299,1721091043900,-500.0,0.0001426,2]
[332253300,1721091043910,-500.0,0.00014269,2]
[332253301,1721091043919,-1000.0,0.00014273,2]
[332253302,1721091043928,-500.0,0.00014278,2]
[332253303,1721091043937,-500.0,0.00014287,2]
[332253304,1721091043946,-500.0,0.00014292,2]
[332253305,1721091043955,-500.0,0.00014292,2]
[332253306,1721091043964,-519.94,0.00014292,2]
[332253307,1721091043973,-500.0,0.00014292,2]
[332253308,1721091043982,-200.0,0.00014319,2]
[332253309,1721091043992,-500.0,0.00014347,2]
[332253310,1721091044001,-500.0,0.00014347,2]
[332253311,1721091044010,-519.94,0.00014347,2]
[332253312,1721091044019,-500.0,0.00014347,2]
[332253313,1721091044028,-2000.0,0.0001436,2]
[332253314,1721091044038,-200.0,0.0001436,2]
[332253315,1721091044047,-200.0,0.0001436,2]
[332253316,1721091044056,-200.15030873,0.00014393,2]
[332253317,1721091044065,-155.0,0.00014393,2]
[332253318,1721091044074,-500.0,0.00014402,2]
[332253319,1721091044083,-500.0,0.00014402,2]
[332253320,1721091044092,-519.94,0.00014402,2]
[332253321,1721091044100,-500.0,0.00014402,2]
[332253322,1721091044110,-17266.0786326,0.00014447,3]
[332253323,1721091044119,-493.5,0.00014457,2]
[332253324,1721091044128,-500.0,0.00014457,2]
[332253325,1721091044137,-519.94,0.00014457,2]
[332253326,1721091044147,-500.0,0.00014457,2]
[332253327,1721091044156,-500.0,0.00014512,2]
[332253328,1721091044165,-519.94,0.00014512,2]
[332253329,1721091044174,-500.0,0.00014512,2]
[332253330,1721091044183,-500.0,0.00014566,2]
[332253331,1721091044192,-519.94,0.00014566,2]
[332253332,1721091044202,-488.80031764,0.00014566,2]
[332253333,1721091044211,-500.0,0.00014621,2]
[332253334,1721091044221,-519.94,0.00014621,2]
[332253335,1721091044230,-500.0,0.00014676,2]
[332253336,1721091044242,-519.94,0.00014676,2]
[332253337,1721091044251,-500.0,0.00014731,2]
[332253338,1721091044259,-519.94,0.00014731,2]
[332253339,1721091044268,-500.0,0.00014786,2]
[332253340,1721091044278,-519.94,0.00014786,2]
[332253341,1721091044287,-1137.032039,0.00014795,2]
[332253342,1721091044296,-500.0,0.0001484,2]
[332253343,1721091044305,-519.94,0.0001484,2]
[332253344,1721091044315,-500.0,0.00014879,2]
[332253345,1721091044324,-500.0,0.0001488,2]
[332253346,1721091044333,-164.56359998,0.0001489,2]
[332253347,1721091044342,-17266.0786326,0.0001489,3]
[332253348,1721091044351,-505.84611342,0.00014895,2]
[332253349,1721091044360,-519.94,0.00014895,2]
[332253350,1721091044370,-1322.90276768,0.00014899,2]
[332253351,1721091044379,-1000.0,0.000149,2]
[332253352,1721091044388,-2000.0,0.000149,2]
[332253353,1721091044398,-2976.96717671,0.000149,2]
[332253354,1721091044407,-178.29,0.00014904,3]
[332253355,1721091044416,-519.94,0.0001495,2]
[332253356,1721091044426,-17266.0786326,0.0001496,3]
[332253357,1721091044435,-69064.3145306,0.0001497,3]
[332253358,1721091044444,-155.0,0.00014973,2]
[332253359,1721091044453,-17266.0786326,0.0001498,3]
[332253360,1721091044462,-17266.0786326,0.00014987,3]
[332253361,1721091044471,-17266.0786326,0.0001499,3]
[332253362,1721091044480,-200.0,0.0001499,2]
[332253363,1721091044490,-155394.707694,0.0001499,3]
[332253364,1721091044499,-27266.60014104,0.00014997,2]
[332253365,1721091044508,-150.01,0.00014999,2]
[332253366,1721091044518,-4304.20831763,0.00014999,2]
[332253367,1721091044527,-38168.82508186,0.00015,2]
[332253368,1721091044535,-7901.21624091,0.00015,2]
[332253369,1721091044544,-1926.93531828,0.00015,2]
[332253370,1721091044553,-1128890.95620968,0.00015,2]
[332253376,1721091046185,-310.0,0.00014393,2]
[332253377,1721091046195,-162.33447912,0.00014899,2]
[332253378,1721091046204,-295.72936463,0.00015,2]
[332253379,1721091046216,-6608.37094698,0.00015,2]
[332253380,1721091046227,-322.51994525,0.00015,2]
[332253381,1721091046245,-824.59977352,0.00015,2]
[332253382,1721091046256,-11173.27156439,0.00015,2]
[332253383,1721091046267,-1421.92119217,0.00015,2]
[332253384,1721091046279,-2497.79507697,0.00015,2]
[332253385,1721091046290,-1462.76416002,0.00015,2]
[332253386,1721091046306,-2325.64980315,0.00015,2]
[332253387,1721091046318,-1951.40039262,0.00015,2]
[332253388,1721091046330,-2372.81520537,0.00015,2]